fUST/lending_fUST_20250628
["ID","MTS","AMOUNT","RATE_DAILY","PERIOD"]
[368284095,1751091042795,-460.0,0.00019726,2]
[368284096,1751091042804,-460.0,0.00019726,2]
[368284097,1751091042814,-460.0,0.00019726,2]
[368284098,1751091042824,-460.0,0.00019726,2]
[368284099,1751091042834,-790.95,0.00019726,2]
[368284100,1751091042843,-476.88,0.00019726,2]
[368284101,1751091042853,-360.0,0.00019726,2]
[368284102,1751091042863,-460.0,0.00019726,2]
[368284103,1751091042872,-811.1,0.00019726,2]
[368284104,1751091042881,-460.0,0.00019726,2]
[368284105,1751091042891,-460.0,0.00019726,2]
[368284106,1751091042900,-460.0,0.00019726,2]
[368284107,1751091042910,-460.0,0.00019726,2]
[368284108,1751091042919,-460.0,0.00019726,2]
[368284109,1751091042929,-460.0,0.00019726,2]
[368284110,1751091042938,-460.0,0.00019726,2]
[368284111,1751091042948,-439.65498581,0.00019726,2]
[368284112,1751091042959,-460.0,0.00019726,2]
[368284113,1751091042968,-460.0,0.00019726,2]
[368284114,1751091042978,-2230.61,0.00019726,2]
[368284115,1751091042987,-460.0,0.00019726,2]
[368284116,1751091042996,-460.0,0.00019726,2]
[368284117,1751091043005,-574.85,0.00019726,2]
[368284118,1751091043015,-460.0,0.00019726,2]
[368284119,1751091043024,-460.0,0.00019726,2]
[368284121,1751091043033,-527.95,0.00019726,2]
[368284123,1751091043043,-631.41,0.00019726,2]
[368284125,1751091043052,-470.95122266,0.00019726,2]
[368284126,1751091043062,-460.0,0.00019726,2]
[368284127,1751091043071,-2861.46,0.00019726,2]
[368284128,1751091043081,-3284.13,0.00019726,2]
[368284130,1751091043090,-1159.21,0.00019726,2]
[368284132,1751091043099,-460.0,0.00019726,2]
[368284134,1751091043115,-460.0,0.00019726,2]
[368284135,1751091043124,-460.0,0.00019726,2]
[368284136,1751091043134,-468.32,0.00019726,2]
[368284137,1751091043143,-460.0,0.00019726,2]
[368284138,1751091043152,-487.1086644,0.00019726,2]
[368284139,1751091043163,-460.0,0.00019726,2]
[368284140,1751091043172,-460.0,0.00019726,2]
[368284141,1751091043182,-460.0,0.00019726,2]
[368284142,1751091043191,-468.23,0.00019726,2]
[368284144,1751091043201,-460.0,0.00019726,2]
[368284146,1751091043210,-460.0,0.00019726,2]
[368284148,1751091043219,-1098.01,0.00019726,2]
[368284150,1751091043229,-1354.82,0.00019726,2]
[368284152,1751091043241,-460.0,0.00019726,2]
[368284154,1751091043251,-1921.13,0.00019726,2]
[368284156,1751091043260,-291.04696635,0.00019726,2]
[368284158,1751091043269,-827.93,0.00019726,2]
[368284160,1751091043279,-460.0,0.00019726,2]
[368284162,1751091043288,-460.0,0.00019726,2]
[368284164,1751091043298,-460.0,0.00019726,2]
[368284166,1751091043309,-460.0,0.00019726,2]
[368284168,1751091043318,-467.43720755,0.00019726,2]
[368284171,1751091043328,-460.0,0.00019726,2]
[368284172,1751091043338,-2026.32,0.00019726,2]
[368284175,1751091043348,-460.0,0.00019726,2]
[368284176,1751091043358,-2029.57,0.00019726,2]
[368284178,1751091043368,-4215.46,0.00019726,2]
[368284180,1751091043378,-460.0,0.00019726,2]
[368284182,1751091043388,-460.0,0.00019726,2]
[368284184,1751091043399,-460.0,0.00019726,2]
[368284185,1751091043408,-477.84553395,0.00019726,2]
[368284187,1751091043418,-609.11,0.00019726,2]
[368284188,1751091043428,-460.0,0.00019726,2]
[368284189,1751091043437,-460.0,0.00019726,2]
[368284190,1751091043447,-460.0,0.00019726,2]
[368284191,1751091043456,-460.0,0.00019726,2]
[368284192,1751091043466,-510.3,0.00019726,2]
[368284193,1751091043475,-460.0,0.00019726,2]
[368284194,1751091043487,-905.5,0.00019726,2]
[368284195,1751091043499,-441.29482588,0.00019726,2]
[368284196,1751091043509,-460.0,0.00019726,2]
[368284197,1751091043519,-460.0,0.00019726,2]
[368284198,1751091043530,-500.0,0.00019739,2]
[368284199,1751091043540,-509.68531918,0.00019743,2]
[368284200,1751091043549,-500.0,0.00019745,2]
[368284201,1751091043560,-287.1658826,0.00019745,2]
[368284202,1751091043569,-500.0,0.00019789,2]
[368284203,1751091043580,-501.47527516,0.00019789,2]
[368284204,1751091043589,-264.30474659,0.00019789,2]
[368284205,1751091043599,-500.0,0.00019789,2]
[368284206,1751091043609,-500.0,0.00019789,2]
[368284207,1751091043619,-500.0,0.00019789,2]
[368284208,1751091043629,-500.0,0.00019789,2]
[368284209,1751091043638,-8754.00350275,0.000199,2]
[368284210,1751091043647,-2411.21882112,0.00019989,2]
[368284211,1751091043657,-1583.65,0.00019999,2]
[368284212,1751091043666,-460.0,0.00019999,2]
[368284213,1751091043676,-2470.31,0.00019999,2]
[368284214,1751091043685,-460.0,0.00019999,2]
[368284215,1751091043695,-603.22383629,0.00019999,2]
[368284216,1751091043704,-1950.18,0.00019999,2]
[368284217,1751091043713,-460.0,0.00019999,2]
[368284218,1751091043723,-4178.58,0.00019999,2]
[368284219,1751091043732,-492.55559778,0.0002,2]
[368284220,1751091043742,-6894.0,0.0002,2]
[368284221,1751091043751,-460.0,0.0002,2]
[368284222,1751091043762,-460.0,0.0002,2]
[368284223,1751091043771,-171.74530234,0.0002,2]
[368284224,1751091043781,-481.09073413,0.0002,2]
[368284225,1751091043790,-460.0,0.0002,2]
[368284226,1751091043799,-474.94,0.0002,2]
[368284227,1751091043809,-454.14387227,0.0002,2]
[368284228,1751091043819,-460.0,0.0002,2]
[368284229,1751091043828,-483.62097006,0.0002,2]
[368284230,1751091043837,-518.60071939,0.0002,2]
[368284231,1751091043846,-793.94,0.0002,2]
[368284232,1751091043856,-460.0,0.0002,2]
[368284233,1751091043865,-460.0,0.0002,2]
[368284234,1751091043875,-460.0,0.0002,2]
[368284235,1751091043885,-460.0,0.0002,2]
[368284236,1751091043895,-460.0,0.0002,2]
[368284237,1751091043904,-460.0,0.0002,2]
[368284238,1751091043914,-460.0,0.0002,2]
[368284239,1751091043924,-460.0,0.0002,2]
[368284240,1751091043933,-515.63884315,0.0002,2]
[368284241,1751091043943,-460.0,0.0002,2]
[368284242,1751091043953,-504.45535336,0.0002,2]
[368284243,1751091043962,-460.0,0.0002,2]
[368284244,1751091043972,-465.20090635,0.0002,2]
[368284245,1751091043982,-534.35,0.0002,2]
[368284246,1751091043992,-460.0,0.0002,2]
[368284247,1751091044001,-325.7,0.0002,2]
[368284248,1751091044012,-162.54,0.0002,2]
[368284249,1751091044138,-460.0,0.0002,2]
[368284250,1751091044148,-460.0,0.0002,2]
[368284251,1751091044158,-1788.17,0.0002,2]
[368284252,1751091044167,-987.51,0.0002,2]
[368284253,1751091044177,-160.0,0.0002,3]
[368284254,1751091044186,-374.41268073,0.0002,2]
[368284255,1751091044195,-1483.78,0.0002,2]
[368284256,1751091044205,-1536.26,0.0002,2]
[368284257,1751091044215,-393.04653521,0.0002,2]
[368284258,1751091044224,-460.0,0.0002,2]
[368284259,1751091044234,-460.0,0.0002,2]
[368284260,1751091044244,-932.87,0.0002,2]
[368284261,1751091044254,-750.61,0.0002,2]
[368284262,1751091044264,-590.31,0.0002,2]
[368284263,1751091044274,-460.0,0.0002,2]
[368284264,1751091044284,-2835.68,0.0002,2]
[368284265,1751091044293,-460.0,0.0002,2]
[368284266,1751091044303,-2967.61,0.0002,2]
[368284267,1751091044313,-390.0,0.0002,2]
[368284268,1751091044322,-460.0,0.0002,2]
[368284269,1751091044331,-460.0,0.0002,2]
[368284270,1751091044341,-460.0,0.0002,2]
[368284271,1751091044350,-460.0,0.0002,2]
[368284272,1751091044360,-460.0,0.0002,2]
[368284273,1751091044369,-460.0,0.0002,2]
[368284274,1751091044378,-790.95,0.0002,2]
[368284275,1751091044388,-476.88,0.0002,2]
[368284276,1751091044398,-460.0,0.0002,2]
[368284277,1751091044410,-811.1,0.0002,2]
[368284278,1751091044424,-460.0,0.0002,2]
[368284279,1751091044433,-460.0,0.0002,2]
[368284280,1751091044443,-460.0,0.0002,2]
[368284281,1751091044452,-460.0,0.0002,2]
[368284282,1751091044462,-421.8078106,0.0002,2]
[368284283,1751091044472,-460.0,0.0002,2]
[368284284,1751091044481,-460.0,0.0002,2]
[368284285,1751091044495,-460.0,0.0002,2]
[368284286,1751091044504,-460.0,0.0002,2]
[368284287,1751091044515,-2230.61,0.0002,2]
[368284288,1751091044524,-474.73564748,0.0002,2]
[368284289,1751091044534,-460.0,0.0002,2]
[368284290,1751091044544,-574.85,0.0002,2]
[368284291,1751091044553,-460.0,0.0002,2]
[368284292,1751091044564,-460.0,0.0002,2]
[368284293,1751091044574,-527.95,0.0002,2]
[368284294,1751091044584,-631.41,0.0002,2]
[368284295,1751091044594,-460.0,0.0002,2]
[368284296,1751091044605,-2861.46,0.0002,2]
[368284297,1751091044614,-3284.13,0.0002,2]
[368284298,1751091044624,-1159.21,0.0002,2]
[368284299,1751091044634,-460.0,0.0002,2]
[368284300,1751091044644,-460.0,0.0002,2]
[368284301,1751091044655,-460.0,0.0002,2]
[368284302,1751091044664,-468.32,0.0002,2]
[368284303,1751091044674,-460.0,0.0002,2]
[368284304,1751091044683,-460.0,0.0002,2]
[368284305,1751091044693,-460.0,0.0002,2]
[368284306,1751091044702,-460.0,0.0002,2]
[368284307,1751091044711,-468.23,0.0002,2]
[368284308,1751091044720,-460.0,0.0002,2]
[368284309,1751091044730,-460.0,0.0002,2]
[368284310,1751091044739,-1098.01,0.0002,2]
[368284311,1751091044749,-1354.82,0.0002,2]
[368284312,1751091044759,-460.0,0.0002,2]
[368284313,1751091044769,-1921.13,0.0002,2]
[368284314,1751091044779,-827.93,0.0002,2]
[368284315,1751091044788,-460.0,0.0002,2]
[368284316,1751091044797,-158.48,0.0002,2]
[368284317,1751091044807,-460.0,0.0002,2]
[368284318,1751091044816,-460.0,0.0002,2]
[368284319,1751091044825,-2026.32,0.0002,2]
[368284320,1751091044834,-460.0,0.0002,2]
[368284321,1751091044843,-2029.57,0.0002,2]
[368284322,1751091044853,-4215.46,0.0002,2]
[368284323,1751091044862,-460.0,0.0002,2]
[368284324,1751091044871,-460.0,0.0002,2]
[368284325,1751091044882,-184.67,0.0002,2]
[368284326,1751091044891,-609.11,0.0002,2]
[368284327,1751091044900,-460.0,0.0002,2]
[368284328,1751091044909,-460.0,0.0002,2]
[368284329,1751091044919,-460.0,0.0002,2]
[368284330,1751091044928,-460.0,0.0002,2]
[368284331,1751091044937,-510.3,0.0002,2]
[368284332,1751091044947,-460.0,0.0002,2]
[368284333,1751091044956,-905.5,0.0002,2]
[368284334,1751091044966,-387.40038183,0.0002,2]
[368284335,1751091044975,-460.0,0.0002,2]
[368284336,1751091044984,-196.29499146,0.0002,2]
[368284337,1751091044994,-300.0,0.0002002,2]
[368284338,1751091045003,-8754.00350255,0.00020141,2]
[368284339,1751091045013,-360.061491,0.00020187,2]
[368284340,1751091045022,-420.0,0.0002022,2]
[368284341,1751091045032,-443.30882593,0.00020235,2]
[368284342,1751091045041,-1000.0,0.0002026,2]
[368284343,1751091045050,-500.0,0.0002027,2]
[368284344,1751091045059,-1000.0,0.00020272,2]
[368284345,1751091045070,-220.30745689,0.00020273,2]
[368284346,1751091045079,-223.20541348,0.00020273,2]
[368284347,1751091045089,-474.94,0.00020273,2]
[368284348,1751091045098,-460.0,0.00020273,2]
[368284349,1751091045108,-793.94,0.00020273,2]
[368284350,1751091045118,-460.0,0.00020273,2]
[368284351,1751091045128,-460.0,0.00020273,2]
[368284352,1751091045138,-460.0,0.00020273,2]
[368284353,1751091045148,-460.0,0.00020273,2]
[368284354,1751091045158,-460.0,0.00020273,2]
[368284355,1751091045168,-460.0,0.00020273,2]
[368284356,1751091045177,-460.0,0.00020273,2]
[368284357,1751091045187,-460.0,0.00020273,2]
[368284358,1751091045197,-460.0,0.00020273,2]
[368284359,1751091045207,-460.0,0.00020273,2]
[368284360,1751091045217,-460.0,0.00020273,2]
[368284361,1751091045226,-460.0,0.00020273,2]
[368284362,1751091045235,-460.0,0.00020273,2]
[368284363,1751091045245,-1788.17,0.00020273,2]
[368284364,1751091045254,-1583.65,0.00020273,2]
[368284365,1751091045264,-987.51,0.00020273,2]
[368284366,1751091045273,-1483.78,0.00020273,2]
[368284367,1751091045282,-1536.26,0.00020273,2]
[368284368,1751091045292,-460.0,0.00020273,2]
[368284369,1751091045301,-460.0,0.00020273,2]
[368284370,1751091045312,-932.87,0.00020273,2]
[368284371,1751091045322,-750.61,0.00020273,2]
[368284372,1751091045331,-590.31,0.00020273,2]
[368284373,1751091045340,-460.0,0.00020273,2]
[368284374,1751091045350,-2835.68,0.00020273,2]
[368284375,1751091045363,-460.0,0.00020273,2]
[368284376,1751091045373,-2967.61,0.00020273,2]
[368284377,1751091045382,-460.0,0.00020273,2]
[368284378,1751091045391,-460.0,0.00020273,2]
[368284379,1751091045400,-567.37481927,0.00020273,2]
[368284380,1751091045410,-460.0,0.00020273,2]
[368284381,1751091045419,-387.81150633,0.00020273,2]
[368284382,1751091045428,-460.0,0.00020273,2]
[368284383,1751091045438,-790.95,0.00020273,2]
[368284384,1751091045447,-476.88,0.00020273,2]
[368284385,1751091045456,-460.0,0.00020273,2]
[368284386,1751091045466,-811.1,0.00020273,2]
[368284387,1751091045475,-487.76071805,0.00020273,2]
[368284388,1751091045484,-460.0,0.00020273,2]
[368284389,1751091045497,-460.0,0.00020273,2]
[368284390,1751091045506,-460.0,0.00020273,2]
[368284391,1751091045515,-2470.31,0.00020273,2]
[368284392,1751091045525,-460.0,0.00020273,2]
[368284393,1751091045534,-460.0,0.00020273,2]
[368284394,1751091045543,-460.0,0.00020273,2]
[368284395,1751091045552,-460.0,0.00020273,2]
[368284396,1751091045561,-460.0,0.00020273,2]
[368284397,1751091045570,-2230.61,0.00020273,2]
[368284398,1751091045580,-460.0,0.00020273,2]
[368284399,1751091045589,-574.85,0.00020273,2]
[368284400,1751091045599,-460.0,0.00020273,2]
[368284401,1751091045608,-460.0,0.00020273,2]
[368284402,1751091045618,-460.0,0.00020273,2]
[368284403,1751091045627,-527.95,0.00020273,2]
[368284404,1751091045636,-631.41,0.00020273,2]
[368284405,1751091045645,-460.0,0.00020273,2]
[368284406,1751091045655,-2861.46,0.00020273,2]
[368284407,1751091045664,-3284.13,0.00020273,2]
[368284408,1751091045673,-1159.21,0.00020273,2]
[368284409,1751091045682,-460.0,0.00020273,2]
[368284410,1751091045692,-460.0,0.00020273,2]
[368284411,1751091045701,-460.0,0.00020273,2]
[368284412,1751091045710,-468.32,0.00020273,2]
[368284413,1751091045720,-460.0,0.00020273,2]
[368284414,1751091045729,-460.0,0.00020273,2]
[368284415,1751091045740,-415.743074,0.00020273,2]
[368284416,1751091045750,-500.0,0.00020273,2]
[368284417,1751091045759,-468.23,0.00020273,2]
[368284418,1751091045768,-1950.18,0.00020273,2]
[368284419,1751091045778,-460.0,0.00020273,2]
[368284420,1751091045787,-204.17581799,0.00020273,2]
[368284421,1751091045796,-1098.01,0.00020273,2]
[368284422,1751091045806,-1354.82,0.00020273,2]
[368284423,1751091045815,-460.0,0.00020273,2]
[368284424,1751091045825,-1921.13,0.00020273,2]
[368284425,1751091045834,-827.93,0.00020273,2]
[368284426,1751091045843,-460.0,0.00020273,2]
[368284427,1751091045852,-460.0,0.00020273,2]
[368284428,1751091045861,-460.0,0.00020273,2]
[368284429,1751091045871,-2026.32,0.00020273,2]
[368284430,1751091045880,-460.0,0.00020273,2]
[368284431,1751091045889,-2029.57,0.00020273,2]
[368284432,1751091045898,-4215.46,0.00020273,2]
[368284433,1751091045907,-460.0,0.00020273,2]
[368284434,1751091045917,-460.0,0.00020273,2]
[368284435,1751091045926,-609.11,0.00020273,2]
[368284436,1751091045935,-4178.58,0.00020273,2]
[368284437,1751091045944,-460.0,0.00020273,2]
[368284438,1751091045953,-460.0,0.00020273,2]
[368284439,1751091045963,-460.0,0.00020273,2]
[368284440,1751091045973,-460.0,0.00020273,2]
[368284441,1751091045982,-510.3,0.00020273,2]
[368284442,1751091045992,-460.0,0.00020273,2]
[368284443,1751091046001,-905.5,0.00020273,2]
[368284444,1751091046011,-460.0,0.00020273,2]
[368284445,1751091046020,-1000.0,0.00020287,2]
[368284446,1751091046029,-503.40974568,0.00020293,2]
[368284447,1751091046038,-160.0,0.00020306,2]
[368284448,1751091046048,-160.0,0.00020306,2]
[368284450,1751091046057,-12564.78152626,0.00020306,2]
[368284451,1751091046066,-160.0,0.00020306,2]
[368284453,1751091046075,-837.06984471,0.00020306,2]
[368284454,1751091046084,-847.18566335,0.00020306,2]
[368284455,1751091046093,-230.28494567,0.00020306,2]
[368284456,1751091046104,-160.0,0.00020306,2]
[368284457,1751091046114,-213.78848551,0.00020306,2]
[368284458,1751091046124,-160.0,0.00020306,2]
[368284459,1751091046133,-214.95397287,0.00020306,2]
[368284460,1751091046142,-160.0,0.00020307,2]
[368284461,1751091046152,-160.0,0.00020307,2]
[368284462,1751091046162,-160.0,0.00020307,2]
[368284463,1751091046170,-512.10269403,0.00020337,2]
[368284465,1751091046180,-501.169435,0.00020337,2]
[368284466,1751091046191,-226.77747217,0.00020337,2]
[368284467,1751091046200,-288.66192114,0.00020337,2]
[368284468,1751091046209,-213.78848551,0.00020383,3]
[368284469,1751091046218,-160.0,0.00020383,3]
[368284470,1751091046227,-160.0,0.00020383,3]
[368284471,1751091046237,-12564.78152626,0.00020383,3]
[368284472,1751091046246,-847.18566335,0.00020383,3]
[368284473,1751091046256,-8754.00350255,0.00020383,3]
[368284474,1751091046265,-318.7,0.00020538,3]
[368284475,1751091046275,-424.96,0.00020538,3]
[368284476,1751091046284,-474.94,0.00020547,2]
[368284477,1751091046293,-460.0,0.00020547,2]
[368284478,1751091046302,-793.94,0.00020547,2]
[368284479,1751091046311,-460.0,0.00020547,2]
[368284480,1751091046321,-460.0,0.00020547,2]
[368284481,1751091046330,-460.0,0.00020547,2]
[368284482,1751091046340,-460.0,0.00020547,2]
[368284483,1751091046349,-460.0,0.00020547,2]
[368284484,1751091046359,-460.0,0.00020547,2]
[368284485,1751091046368,-460.0,0.00020547,2]
[368284486,1751091046377,-280.82,0.00020547,2]
[368284487,1751091046386,-460.0,0.00020547,2]
[368284488,1751091046396,-551.86494749,0.00020547,2]
[368284489,1751091046404,-460.0,0.00020547,2]
[368284490,1751091046413,-500.0,0.00020547,14]
[368284491,1751091046423,-199.28758949,0.00020547,2]
[368284492,1751091046432,-460.0,0.00020547,2]
[368284493,1751091046441,-1788.17,0.00020547,2]
[368284494,1751091046451,-1583.65,0.00020547,2]
[368284495,1751091046460,-987.51,0.00020547,2]
[368284496,1751091046469,-1483.78,0.00020547,2]
[368284497,1751091046478,-1536.26,0.00020547,2]
[368284498,1751091046489,-414.06239057,0.00020547,2]
[368284499,1751091046501,-460.0,0.00020547,2]
[368284500,1751091046511,-932.87,0.00020547,2]
[368284501,1751091046520,-750.61,0.00020547,2]
[368284502,1751091046530,-590.31,0.00020547,2]
[368284503,1751091046539,-460.0,0.00020547,2]
[368284504,1751091046549,-2835.68,0.00020547,2]
[368284506,1751091046559,-460.0,0.00020547,2]
[368284508,1751091046569,-2967.61,0.00020547,2]
[368284510,1751091046578,-460.0,0.00020547,2]
[368284511,1751091046587,-460.0,0.00020547,2]
[368284513,1751091046596,-460.0,0.00020547,2]
[368284515,1751091046606,-460.0,0.00020547,2]
[368284517,1751091046615,-790.95,0.00020547,2]
[368284518,1751091046624,-476.88,0.00020547,2]
[368284519,1751091046633,-460.0,0.00020547,2]
[368284520,1751091046643,-811.1,0.00020547,2]
[368284521,1751091046653,-460.0,0.00020547,2]
[368284522,1751091046662,-460.0,0.00020547,2]
[368284523,1751091046671,-460.0,0.00020547,2]
[368284524,1751091046682,-2470.31,0.00020547,2]
[368284525,1751091046691,-460.0,0.00020547,2]
[368284526,1751091046700,-601.28832938,0.00020547,2]
[368284527,1751091046709,-460.0,0.00020547,2]
[368284528,1751091046718,-460.0,0.00020547,2]
[368284529,1751091046728,-460.0,0.00020547,2]
[368284530,1751091046737,-460.0,0.00020547,2]
[368284531,1751091046851,-2230.61,0.00020547,2]
[368284532,1751091046861,-574.85,0.00020547,2]
[368284533,1751091046871,-460.0,0.00020547,2]
[368284534,1751091046880,-460.0,0.00020547,2]
[368284535,1751091046890,-305.77632878,0.00020547,2]
[368284536,1751091046900,-527.95,0.00020547,2]
[368284537,1751091046910,-631.41,0.00020547,2]
[368284538,1751091046919,-600.27084496,0.00020547,2]
[368284539,1751091046928,-2861.46,0.00020547,2]
[368284540,1751091046938,-3284.13,0.00020547,2]
[368284541,1751091046948,-1159.21,0.00020547,2]
[368284542,1751091046959,-460.0,0.00020547,2]
[368284543,1751091046968,-460.0,0.00020547,2]
[368284544,1751091046978,-460.0,0.00020547,2]
[368284545,1751091046987,-468.32,0.00020547,2]
[368284546,1751091046998,-460.0,0.00020547,2]
[368284547,1751091047007,-460.0,0.00020547,2]
[368284548,1751091047018,-468.23,0.00020547,2]
[368284549,1751091047028,-1950.18,0.00020547,2]
[368284550,1751091047038,-460.0,0.00020547,2]
[368284551,1751091047048,-1098.01,0.00020547,2]
[368284552,1751091047057,-151.0,0.00020547,2]
[368284553,1751091047067,-1354.82,0.00020547,2]
[368284554,1751091047076,-460.0,0.00020547,2]
[368284555,1751091047086,-151.0,0.00020547,2]
[368284556,1751091047095,-1921.13,0.00020547,2]
[368284557,1751091047105,-827.93,0.00020547,2]
[368284558,1751091047115,-460.0,0.00020547,2]
[368284559,1751091047125,-460.0,0.00020547,2]
[368284560,1751091047134,-460.0,0.00020547,2]
[368284561,1751091047144,-2026.32,0.00020547,2]
[368284562,1751091047153,-460.0,0.00020547,2]
[368284563,1751091047163,-2029.57,0.00020547,2]
[368284564,1751091047172,-4215.46,0.00020547,2]
[368284565,1751091047181,-460.0,0.00020547,2]
[368284566,1751091047191,-151.0,0.00020547,2]
[368284567,1751091047200,-460.0,0.00020547,2]
[368284568,1751091047209,-609.11,0.00020547,2]
[368284569,1751091047219,-4178.58,0.00020547,2]
[368284570,1751091047229,-460.0,0.00020547,2]
[368284571,1751091047239,-460.0,0.00020547,2]
[368284572,1751091047248,-460.0,0.00020547,2]
[368284573,1751091047258,-460.0,0.00020547,2]
[368284574,1751091047267,-460.0,0.00020547,2]
[368284575,1751091047276,-510.3,0.00020547,2]
[368284576,1751091047286,-315.424267,0.00020547,2]
[368284577,1751091047294,-315.424267,0.00020547,2]
[368284578,1751091047304,-905.5,0.00020547,2]
[368284579,1751091047313,-151.0,0.00020547,2]
[368284580,1751091047323,-460.0,0.00020547,2]
[368284581,1751091047333,-151.0,0.00020547,2]
[368284582,1751091047342,-3797.86,0.000206,2]
[368284583,1751091047352,-151.0,0.00020624,2]
[368284584,1751091047362,-151.0,0.00020624,2]
[368284585,1751091047371,-151.0,0.00020624,2]
[368284586,1751091047381,-151.0,0.00020624,2]
[368284587,1751091047391,-151.0,0.00020624,2]
[368284588,1751091047400,-483.100693,0.00020624,2]
[368284589,1751091047410,-483.100693,0.00020624,2]
[368284590,1751091047419,-255.416074,0.00020624,2]
[368284591,1751091047429,-255.416074,0.00020624,2]
[368284592,1751091047438,-8754.00350255,0.00020624,3]
[368284593,1751091047448,-2411.21882112,0.00020626,2]
[368284594,1751091047458,-2859.0,0.00020698,2]
[368284595,1751091047468,-151.0,0.000207,3]
[368284596,1751091047477,-212.9,0.00020753,3]
[368284597,1751091047486,-500.0,0.00020758,2]
[368284598,1751091047499,-1500.0,0.00020808,2]
[368284599,1751091047508,-500.0,0.0002082,2]
[368284600,1751091047517,-355.01472192,0.0002082,2]
[368284601,1751091047526,-500.0,0.0002082,2]
[368284602,1751091047535,-500.0,0.0002082,2]
[368284603,1751091047545,-178.67757898,0.0002082,2]
[368284604,1751091047554,-22012.65280196,0.00020821,2]
[368284605,1751091047563,-5673.15573393,0.00020821,2]
[368284606,1751091047572,-160.3588391,0.00020821,2]
[368284607,1751091047583,-207.4,0.00020821,2]
[368284608,1751091047592,-500.0,0.00020821,2]
[368284609,1751091047601,-5000.0,0.00020821,2]
[368284610,1751091047611,-500.0,0.00020821,2]
[368284611,1751091047620,-500.0,0.00020821,2]
[368284612,1751091047630,-500.0,0.00020821,2]
[368284613,1751091047639,-503.93739225,0.00020821,2]
[368284614,1751091047649,-666.0,0.00020821,2]
[368284615,1751091047659,-2001.05393756,0.00020821,2]
[368284616,1751091047668,-500.0,0.00020821,2]
[368284617,1751091047677,-500.0,0.00020821,2]
[368284618,1751091047687,-500.0,0.00020821,2]
[368284619,1751091047696,-500.0,0.00020821,2]
[368284620,1751091047705,-500.0,0.00020821,2]
[368284621,1751091047714,-500.0,0.00020821,2]
[368284622,1751091047723,-500.0,0.00020821,2]
[368284623,1751091047732,-500.0,0.00020821,2]
[368284624,1751091047741,-500.0,0.00020821,2]
[368284625,1751091047751,-500.0,0.00020821,2]
[368284626,1751091047760,-500.0,0.00020821,2]
[368284627,1751091047769,-500.0,0.00020821,2]
[368284628,1751091047779,-500.0,0.00020821,2]
[368284629,1751091047788,-500.0,0.00020821,2]
[368284630,1751091047798,-154.31315253,0.00020821,2]
[368284631,1751091047807,-246.59496078,0.00020821,2]